Cogmind - Beta 16.1 @@@ ROGUE MODE // 2026.02.18 @ 16:54:03 Player: kiul Result: Self-destructed Performance ------------- Evolutions (4) 2000 Regions Visited (9) 1800 Robots Destroyed (49) 245 Value Destroyed (1414) 1414 Prototype IDs (6) 120 Alien Tech Used (0) 0 Bonus (0) 0 TOTAL SCORE: 5579 Bonus ------- None Cogmind --------- Core Integrity 634/850 Matter 150/300 Energy 100/100 System Corruption 15% Temperature Warm (160) Movement Core (50) Location -6/Waste Parts ------- > --- POWER (2) -------- (None) > --- PROPULSION (5) --- (None) > --- UTILITY (5) ------ (None) > --- WEAPON (3) ------- (None) > --- INVENTORY (5) ---- Light Nuclear Core Improved Light Armor Plating Improved Shield Generator Peak State ------------ > --- POWER ------------ Heavy Ion Engine Neutrino Core > --- PROPULSION ------- Light Treads Light Treads Light Treads Light Treads Light Treads > --- UTILITY ---------- Improved Heat Sink Huge Storage Unit Reflective Plating Hacking Suite > --- WEAPON ----------- Advanced Beam Cannon Hardcell Cannon Flamer > --- INVENTORY -------- Improved Ion Engine Light Nuclear Core Neutrino Core Heat Sink Heat Sink Improved Heat Sink Compact Matter Pod Compact Matter Pod Salvage Targeting Computer Hardened Medium Armor Plating Improved Light Armor Plating Improved Light Armor Plating Improved Light Armor Plating Improved Shield Generator Advanced Beam Cannon Advanced Beam Cannon Heavy Particle Cannon Grenade Launcher Grenade Launcher Grenade Launcher Improved Grenade Launcher Axe [Rating: 41] Favorites ----------- Power Heavy Ion Engine Engine Heavy Ion Engine Power Core Neutrino Core Propulsion Light Treads Treads Light Treads Wheel Wheel Utility Huge Storage Unit Device Improved Heat Sink Storage Huge Storage Unit Hackware Hacking Suite Protection Hardened Light Armor Plating Weapon Advanced Beam Cannon Energy Gun Medium Laser Energy Cannon Advanced Beam Cannon Ballistic Gun Heavy Assault Rifle Ballistic Cannon Hardcell Cannon Launcher Grenade Launcher Special Weapon Flamer Slashing Weapon Axe Build | -11 -10 -9 -9 -8 -7 -7 -7 -6 -6 ------- Run | Yrd Mat Mat Sto Mat Fac Low Low Fac Was Slots Evolved 8 | . . 2 . 2 2 . . 2 . Power 1 | . . . . . . . . 1 . Propulsion 3 | . . . . 2 1 . . . . Utility 3 | . . 1 . . 1 . . 1 . Weapon 1 | . . 1 . . . . . . . Parts Attached 44 | 8 4 2 13 7 5 2 . 2 1 Power 8 | 1 . 1 3 . . 1 . 2 . Engine 7 | 1 . 1 3 . . . . 2 . Core 1 | . . . . . . 1 . . . Reactor . | . . . . . . . . . . Propulsion 9 | 4 . . 1 2 2 . . . . Treads 7 | 2 . . 1 2 2 . . . . Leg . | . . . . . . . . . . Wheel 2 | 2 . . . . . . . . . Hover . | . . . . . . . . . . Flight . | . . . . . . . . . . Utility 12 | 1 3 . 4 2 2 . . . . Device 4 | . . . 3 1 . . . . . Storage 3 | 1 2 . . . . . . . . Processor . | . . . . . . . . . . Hackware 1 | . . . . . 1 . . . . Protection 4 | . 1 . 1 1 1 . . . . Artifact . | . . . . . . . . . . Weapon 15 | 2 1 1 5 3 1 1 . . 1 Energy Gun 3 | . . 1 1 1 . . . . . Energy Cannon 1 | . . . 1 . . . . . . Ballistic Gun 4 | 2 . . 1 1 . . . . . Ballistic Cannon 1 | . . . . . . . . . 1 Launcher 4 | . 1 . 2 1 . . . . . Special Weapon 1 | . . . . . . 1 . . . Impact Weapon . | . . . . . . . . . . Slashing Weapon 1 | . . . . . 1 . . . . Piercing Weapon . | . . . . . . . . . . Special Melee Weapon . | . . . . . . . . . . Unidentified Prototypes 6 | . . . 4 1 . . . 1 . Parts Lost 20 | . . . 8 3 . . . . 9 Power 2 | . . . . . . . . . 2 Propulsion 7 | . . . 3 1 . . . . 3 Utility 3 | . . . 1 1 . . . . 1 Weapon 8 | . . . 4 1 . . . . 3 Highest Loss Streak 9 | . . . 5 2 . . . . 9 To Critical Strikes 2 | . . . . . . . . . 2 Average Backups 17 | . 7 12 14 21 19 20 23 22 19 Power 2 | . 1 1 2 3 3 3 4 3 2 Propulsion . | . 2 3 1 1 . . . . . Utility 7 | . 3 4 5 10 9 10 11 11 9 Weapon 5 | . 1 3 4 6 7 7 8 8 6 Tool/Special . | . . . . . . . . . . Unused Backups 22 | . . . 3 5 . . . . 14 Power 3 | . . . . 1 . . . . 2 Propulsion . | . . . . . . . . . . Utility 9 | . . . . 3 . . . . 6 Weapon 10 | . . . 3 1 . . . . 6 Tool/Special . | . . . . . . . . . . Average Slot Usage (%) 96 | . 99 88 93 99 99 100 100 92 74 Engine 7 | . 14 11 9 9 7 3 . 5 4 Core 1 | . . . . . . 3 7 6 4 Treads 27 | . . . 19 35 37 38 38 33 25 Wheel 3 | . 28 22 1 . . . . . . Device 6 | . . . 8 9 7 7 7 6 4 Storage 9 | . 14 11 11 9 7 7 7 6 4 Hackware 2 | . . . . . 6 7 7 6 4 Protection 9 | . 13 11 11 9 7 7 7 6 4 Energy Cannon 6 | . . . 7 9 7 7 7 6 4 Ballistic Gun 10 | . 26 11 11 9 7 7 7 6 . Launcher 6 | . 1 11 10 9 6 4 . . . Special Weapon 1 | . . . . . . 2 7 6 4 Peak Build Rating 41 | 6 9 11 19 27 30 34 34 39 41 Average Rating 22 | 3 8 10 15 23 29 31 34 35 32 On Entrance 20 | . 6 9 11 19 26 30 34 34 36 Avg Prop Armor Cover (%) 27 | 27 . . . . . . . . . Naked Turns 25 | . . . . . . . . . 25 Heaviest Build 123 | 11 93 99 102 106 109 112 108 116 123 Greatest Support 100 | 40 20 20 40 80 100 100 100 100 100 Greatest Overweight (x) 9 | . 4 4 9 1 1 1 1 1 1 Average Overweight (x) 1 | . . 4 2 1 1 1 1 1 . Largest Inventory Capacity 25 | 8 25 25 25 25 25 25 25 25 25 Average Capacity 23 | 5 14 25 25 25 25 25 25 25 21 Most Carried 24 | 4 13 13 20 24 21 23 23 23 22 Average Carried 17 | . 8 12 14 21 19 20 23 22 18 Final Capacity 25 | 8 25 25 25 25 25 25 25 25 5 Final Carried 23 | 4 12 13 20 22 20 23 23 22 3 Class Distribution -------------------- 36% | Scavenger-Tank 28% | Tank 18% | Scavenger-Bomber 15% | Mutant Dominant Class ---------------- Mutant | -10/Materials Tank | -9/Materials Tank | -9/Storage Scavenger-Bomber | -8/Materials Scavenger-Bomber | -7/Factory Scavenger-Tank | -7/Lower Caves Scavenger-Tank | -7/Lower Caves Scavenger-Tank | -6/Factory Scavenger-Tank | -6/Waste Resources | -11 -10 -9 -9 -8 -7 -7 -7 -6 -6 ----------- Run | Yrd Mat Mat Sto Mat Fac Low Low Fac Was Matter Collected 1367 | 311 72 113 412 139 . 320 . . . Remotely . | . . . . . . . . . . Salvage Created 1796 | 73 138 181 739 323 75 89 . . 178 Parts 99 | 2 11 12 48 17 4 5 . . . Haulers Intercepted 8 | . 1 1 5 1 . . . . . Recyclers Shooed . | . . . . . . . . . . Parts Field Recycled . | . . . . . . . . . . Retrieved Matter . | . . . . . . . . . . Parts Self-Destructed 8 | . . . . . . 8 . . . Prevented . | . . . . . . . . . . Parts Restored . | . . . . . . . . . . Kills | -11 -10 -9 -9 -8 -7 -7 -7 -6 -6 ------- Run | Yrd Mat Mat Sto Mat Fac Low Low Fac Was Combat Hostiles Destroyed 33 | . 4 6 10 7 2 3 . . 1 Guns 10 | . 4 1 2 2 . 1 . . . Cannons 9 | . . . 4 3 . 1 . . 1 AOE 12 | . . 5 2 2 2 1 . . . Classes Destroyed 10 | 1 3 2 2 1 . . . . 1 Builder 3 | . . . 3 . . . . . . Hauler 8 | . 1 1 5 1 . . . . . Recycler 1 | 1 . . . . . . . . . Operator 2 | . . . 1 . 1 . . . . Watcher 2 | . . 1 1 . . . . . . Swarmer 8 | . 3 3 . . . 2 . . . Grunt 15 | . 1 2 4 6 2 . . . . Sentry 7 | . . 1 6 . . . . . . Hunter 2 | . . . . 1 . 1 . . . Compactor 1 | . . . . . . . . . 1 Best Kill Streak 7 | 1 3 7 6 3 2 2 . . 1 Combat Bots Only 6 | . 3 6 4 3 2 2 . . 1 Max Kills in Single Turn 2 | 1 1 2 2 1 1 1 . . 1 Gunslinging . | . . . . . . . . . . Exploded 2 | . . 2 1 1 1 1 . . . Melee . | . . . . . . . . . . Uniques/NPCs Destroyed . | . . . . . . . . . . Combat | -11 -10 -9 -9 -8 -7 -7 -7 -6 -6 -------- Run | Yrd Mat Mat Sto Mat Fac Low Low Fac Was Hostile Shots Fired 197 | . 25 11 93 40 5 16 . . 7 Missed 61 | . 9 5 28 11 3 5 . . . Hits 136 | . 16 6 65 29 2 11 . . 7 Melee 7 | . . . . . . . . . 7 Projectile 129 | . 16 6 65 29 2 11 . . . Critical Strikes 11 | . 1 . 3 2 . . . . 5 Damage Taken 2378 | . 196 114 1006 484 67 172 . . 339 Core 426 | . 32 20 88 70 . . . . 216 Absorbed by Shields . | . . . . . . . . . . Ignored by Resistances 16 | . . . . 12 4 . . . . Core Remaining (%) 89 | 100 87 . 73 87 . . 100 . . Volleys Fired 140 | 9 17 11 65 23 3 6 . . 6 Largest 3 | 2 2 3 3 3 3 3 . . 3 Hottest 223 | 40 40 100 118 127 127 127 . . 223 Shots Fired 286 | 13 34 29 124 52 9 12 . . 13 Gun 182 | 13 34 22 83 23 3 4 . . . Cannon 68 | . . . 28 23 3 4 . . 10 Launcher 31 | . . 7 13 6 3 2 . . . Special 5 | . . . . . . 2 . . 3 Kinetic 162 | 13 34 11 68 23 3 4 . . 6 Thermal 93 | . . 11 43 23 3 6 . . 7 Explosive 31 | . . 7 13 6 3 2 . . . Electromagnetic . | . . . . . . . . . . Robot Hit Streak 15 | 3 8 5 11 9 15 3 . . 14 Robot Miss Streak 5 | 3 5 3 3 3 1 1 . . . Penetration Max . | . . . . . . . . . . Secondary Targets 2 | . 1 . 1 . . . . . . Max Gunslinging Chain 1 | . 1 . 1 . . . . . . Shots Hit Robots 179 | 8 19 11 83 31 8 6 . . 13 Core Hits 88 | 3 9 12 32 18 6 5 . . 3 Critical Kills 2 | . . . 2 . . . . . . Critical Parts Destroyed . | . . . . . . . . . . Critical Strikes 5 | . . 1 4 . . . . . . Burn 3 | . . 1 2 . . . . . . Meltdown 2 | . . . 2 . . . . . . Melee Attacks 3 | . . . . . 2 . . . 1 Impact . | . . . . . . . . . . Slashing 3 | . . . . . 2 . . . 1 Piercing . | . . . . . . . . . . Sneak Attacks . | . . . . . . . . . . Combat Hostiles . | . . . . . . . . . . Follow-up Attacks . | . . . . . . . . . . Damage Inflicted 3629 | 76 198 404 1293 835 303 198 . . 322 Guns 1280 | 76 198 133 580 211 42 40 . . . Cannons 1072 | . . . 413 289 41 61 . . 268 Explosions 1223 | . . 271 300 335 220 97 . . . Melee 20 | . . . . . . . . . 20 Ramming . | . . . . . . . . . . Kinetic 1278 | 76 198 70 454 211 42 40 . . 187 Thermal 1108 | . . 63 539 289 41 61 . . 115 Explosive 1223 | . . 271 300 335 220 97 . . . Electromagnetic . | . . . . . . . . . . Impact . | . . . . . . . . . . Slashing 20 | . . . . . . . . . 20 Piercing . | . . . . . . . . . . Highest Corruption 15 | . . . . . . . . . 15 Average Corruption 8 | . . . . . . . . . 8 Corruption Purged . | . . . . . . . . . . Corruption Blocked . | . . . . . . . . . . Effects 5 | . . . . . . . . . 5 Message Errors 1 | . . . . . . . . . 1 Heat Flow Errors 2 | . . . . . . . . . 2 Energy Discharges 1 | . . . . . . . . . 1 Misdirections 1 | . . . . . . . . . 1 Overload Shots . | . . . . . . . . . . Overflow Damage 18 | . . . . 10 1 7 . . . Projectiles 7 | . . . . . . 7 . . . Explosions 11 | . . . . 10 1 . . . . Melee . | . . . . . . . . . . Knockbacks . | . . . . . . . . . . Impact . | . . . . . . . . . . Kinetic . | . . . . . . . . . . Secondary . | . . . . . . . . . . Self-Inflicted Damage 132 | . . 40 22 28 42 . . . . Shots 6 | . . 1 2 2 1 . . . . Rammed . | . . . . . . . . . . Targets Rammed . | . . . . . . . . . . Kicked . | . . . . . . . . . . Crushed . | . . . . . . . . . . Highest Temperature 433 | . 68 207 433 63 36 18 . 379 220 Average Temperature 102 | . 32 72 147 21 17 10 . 167 117 Received Heat Transfer 741 | . 105 27 339 252 18 . . . . Effects 6 | . . . 5 . . . . 1 . Shutdowns 1 | . . . 1 . . . . . . Energy Bleed 3 | . . . 3 . . . . . . Matter Decay 1 | . . . . . . . . 1 . Damage (minor) 1 | . . . 1 . . . . . . Siege Activations . | . . . . . . . . . . Martial Activations . | . . . . . . . . . . Shielding Activations . | . . . . . . . . . . Robots Disrupted . | . . . . . . . . . . Combat Hostiles . | . . . . . . . . . . Robots Corrupted . | . . . . . . . . . . Combat Hostiles . | . . . . . . . . . . Parts Fried . | . . . . . . . . . . Impact Corruptions . | . . . . . . . . . . Robots Melted 3 | . . . 3 . . . . . . Combat Hostiles 2 | . . . 2 . . . . . . Parts Melted 8 | . . . 7 1 . . . . . Heat Transferred 2608 | . . 259 1258 518 74 111 . . 388 Parts Sabotaged . | . . . . . . . . . . Parts Stolen . | . . . . . . . . . . Parts Stripped . | . . . . . . . . . . Power Chain Reactions . | . . . . . . . . . . Alert | -11 -10 -9 -9 -8 -7 -7 -7 -6 -6 ------- Run | Yrd Mat Mat Sto Mat Fac Low Low Fac Was Maximum Alert Level . | . . . . . . . . . . Low Security (%) 100 | 100 100 100 100 100 100 . . 100 100 Level 1 . | . . . . . . . . . . Level 2 . | . . . . . . . . . . Level 3 . | . . . . . . . . . . Level 4 . | . . . . . . . . . . Level 5 . | . . . . . . . . . . High Security . | . . . . . . . . . . Max Security . | . . . . . . . . . . Peak Influence 193 | 5 70 193 127 80 120 . . . 1 Initial 63 | . . . 63 . 6 . . . . Average 34 | . 21 117 45 16 43 . . . . Influence Increases 1208 | 5 116 220 443 210 143 70 . . 1 Destroy 0b10 Robot/C 640 | . 80 120 200 140 40 60 . . . Destroy 0b10 Robot/NC 80 | 5 5 10 50 5 5 . . . . Destroy Leader 190 | . 22 34 82 32 10 10 . . . Successful Hack 21 | . 9 . . . 12 . . . . Disable Machine 105 | . . 15 45 15 30 . . . . Destroy Structure 172 | . . 41 66 18 46 . . . 1 Influence Decreases 1208 | 5 116 70 593 196 131 96 . . 1 Entered New Map 105 | . . . 87 . 8 10 . . . Time Decay 992 | 5 116 70 426 166 123 86 . . . Lost Part 111 | . . . 80 30 . . . . 1 Squads Dispatched 6 | . . 1 1 2 2 . . . . Investigation 3 | . . . . 1 2 . . . . Extermination . | . . . . . . . . . . Reinforcement 3 | . . 1 1 1 . . . . . Assault . | . . . . . . . . . . Garrison . | . . . . . . . . . . Intercept . | . . . . . . . . . . Searches Triggered . | . . . . . . . . . . Construction Impeded . | . . . . . . . . . . Haulers Reinforced . | . . . . . . . . . . Active Scanning Responses . | . . . . . . . . . . Cargo Convoy Interrupts . | . . . . . . . . . . Stealth | -11 -10 -9 -9 -8 -7 -7 -7 -6 -6 --------- Run | Yrd Mat Mat Sto Mat Fac Low Low Fac Was Distress Signals 5 | . . 1 4 . . . . . . Communications Jammed . | . . . . . . . . . . Distress Signals . | . . . . . . . . . . Times Spotted 52 | . 8 8 14 12 2 3 . . 5 Peak Tracking Total 4 | . 4 3 4 4 2 2 . . 4 Tactical Retreats . | . . . . . . . . . . Traps | -11 -10 -9 -9 -8 -7 -7 -7 -6 -6 ------- Run | Yrd Mat Mat Sto Mat Fac Low Low Fac Was Traps Triggered 2 | . . . . 1 . . . 1 . Indirectly . | . . . . . . . . . . Trap Hack Attempts . | . . . . . . . . . . Triggered . | . . . . . . . . . . Disarmed . | . . . . . . . . . . Reprogrammed . | . . . . . . . . . . Reused . | . . . . . . . . . . Traps Extracted . | . . . . . . . . . . Installed . | . . . . . . . . . . Triggered . | . . . . . . . . . . Machines | -11 -10 -9 -9 -8 -7 -7 -7 -6 -6 ---------- Run | Yrd Mat Mat Sto Mat Fac Low Low Fac Was Machines Disabled 7 | . . 1 3 1 2 . . . . Max in Single Turn 2 | . . 1 2 1 1 . . . . Machines Repaired . | . . . . . . . . . . Machines Dismantled . | . . . . . . . . . . Machines Sabotaged . | . . . . . . . . . . Overloaded Fab Kills . | . . . . . . . . . . Hacking | -11 -10 -9 -9 -8 -7 -7 -7 -6 -6 --------- Run | Yrd Mat Mat Sto Mat Fac Low Low Fac Was Machines Accessed 7 | . 2 . 2 . 3 . . . . Terminals 6 | . 2 . 2 . 2 . . . . Fabricators . | . . . . . . . . . . Repair Stations . | . . . . . . . . . . Recycling Units . | . . . . . . . . . . Scanalyzers 1 | . . . . . 1 . . . . Garrison Access . | . . . . . . . . . . Total Hacks 16 | . 4 . 4 . 8 . . . . Successful 7 | . 2 . 2 . 3 . . . . Failed 9 | . 2 . 2 . 5 . . . . Catastrophic 2 | . 1 . 1 . . . . . . Database Lockouts . | . . . . . . . . . . Manual 2 | . 2 . . . . . . . . Terminals 14 | . 4 . 4 . 6 . . . . Fabricators . | . . . . . . . . . . Repair Stations . | . . . . . . . . . . Recycling Units . | . . . . . . . . . . Scanalyzers 2 | . . . . . 2 . . . . Garrison Access . | . . . . . . . . . . Terminal Hacks 6 | . 2 . 2 . 2 . . . . Record 1 | . . . . . 1 . . . . Robot Analysis 1 | . 1 . . . . . . . . Open Door 2 | . . . 2 . . . . . . Hauler Manifests 1 | . 1 . . . . . . . . Zone Layout 1 | . . . . . 1 . . . . Fabricator Hacks . | . . . . . . . . . . Repair Station Hacks . | . . . . . . . . . . Recycling Unit Hacks . | . . . . . . . . . . Scanalyzer 1 | . . . . . 1 . . . . Insert Component 1 | . . . . . 1 . . . . Garrison Access Hacks . | . . . . . . . . . . Unauthorized Hacks . | . . . . . . . . . . Terminals . | . . . . . . . . . . Fabricators . | . . . . . . . . . . Repair Stations . | . . . . . . . . . . Recycling Units . | . . . . . . . . . . Scanalyzers . | . . . . . . . . . . Garrison Access . | . . . . . . . . . . Data Cores Recovered 1 | . . . . . 1 . . . . Used . | . . . . . . . . . . Hacking Detections 5 | . 1 . 1 . 3 . . . . Full Trace Events 2 | . . . . . 2 . . . . Feedback Events . | . . . . . . . . . . Feedback Blocked . | . . . . . . . . . . Robot Schematics Acquired . | . . . . . . . . . . Robots Built . | . . . . . . . . . . Authchips . | . . . . . . . . . . Time . | . . . . . . . . . . Total Robot Build Rating . | . . . . . . . . . . Part Schematics Acquired . | . . . . . . . . . . Parts Built . | . . . . . . . . . . Authchips . | . . . . . . . . . . Time . | . . . . . . . . . . Total Part Build Rating . | . . . . . . . . . . Part Studies Acquired . | . . . . . . . . . . Parts Repaired . | . . . . . . . . . . Time . | . . . . . . . . . . Parts Recycled . | . . . . . . . . . . Recycled Matter . | . . . . . . . . . . Retrieved Matter . | . . . . . . . . . . Retrieved Components . | . . . . . . . . . . Parts Scanalyzed . | . . . . . . . . . . Part Schematics Acquired . | . . . . . . . . . . Parts Damaged . | . . . . . . . . . . Bothacking | -11 -10 -9 -9 -8 -7 -7 -7 -6 -6 ------------ Run | Yrd Mat Mat Sto Mat Fac Low Low Fac Was Used RIF Installer . | . . . . . . . . . . Robots Hacked . | . . . . . . . . . . Non-combat . | . . . . . . . . . . Combat . | . . . . . . . . . . Robot Hacks Applied . | . . . . . . . . . . Relay Couplers Released . | . . . . . . . . . . Fabnet Peak Effective % . | . . . . . . . . . . Robots Rewired . | . . . . . . . . . . Allies Hacked . | . . . . . . . . . . Hacks Repelled . | . . . . . . . . . . Allies | -11 -10 -9 -9 -8 -7 -7 -7 -6 -6 -------- Run | Yrd Mat Mat Sto Mat Fac Low Low Fac Was Total Allies . | . . . . . . . . . . Largest Group . | . . . . . . . . . . Highest-Rated Group . | . . . . . . . . . . Highest-Rated Ally . | . . . . . . . . . . Total Orders . | . . . . . . . . . . Ally Attacks . | . . . . . . . . . . Total Damage . | . . . . . . . . . . Kills . | . . . . . . . . . . Allies Corrupted . | . . . . . . . . . . Allies Melted . | . . . . . . . . . . Intel | -11 -10 -9 -9 -8 -7 -7 -7 -6 -6 ------- Run | Yrd Mat Mat Sto Mat Fac Low Low Fac Was Active Infowar (turns) . | . . . . . . . . . . Robot Analysis Total 1 | . 1 . . . . . . . . Derelict Logs Recovered 1 | . . . . . . 1 . . . Drone Launches . | . . . . . . . . . . Drone Recoveries . | . . . . . . . . . . Exploration | -11 -10 -9 -9 -8 -7 -7 -7 -6 -6 ------------- Run | Yrd Mat Mat Sto Mat Fac Low Low Fac Was Turns Passed 4571 | 119 351 176 1337 791 439 1021 46 133 158 Spaces Moved 1895 | 89 289 99 377 291 174 415 20 53 88 Core 49 | 7 . . . . . . . . 42 Treads 1344 | 15 . . 330 291 174 415 20 53 46 Legs . | . . . . . . . . . . Wheels 502 | 67 289 99 47 . . . . . . Hover . | . . . . . . . . . . Flight . | . . . . . . . . . . Fastest Speed 50 | 50 80 140 140 240 240 240 240 240 50 Average Speed 213 | 91 94 140 298 240 240 240 240 240 149 Slowest Speed 320 | 160 140 140 320 240 240 240 240 240 240 Overloaded Moves . | . . . . . . . . . . Propulsion Burnouts . | . . . . . . . . . . Robots Hopped . | . . . . . . . . . . Potential Cave-ins . | . . . . . . . . . . Cave-ins Triggered . | . . . . . . . . . . Exploration Rate (%) 29 | 3 43 16 66 33 6 56 5 3 67 Regions Visited 9 Branch Regions 3 Pre-discovered Areas 2 | . . . 1 . . 1 . . . Known Exits Taken . | . . . . . . . . . . Unknown Exits Taken 8 | 1 1 1 1 1 1 1 1 . . Scrap Searched 1 | . . . . . . 1 . . . Spaces Dug 2 | . . . . . 2 . . . . Terrain Destroyed 198 | . . 36 60 33 48 20 . . 1 Melee 2 | . . . . . 2 . . . . Projectile 1 | . . . . . . . . . 1 AOE 195 | . . 36 60 33 46 20 . . . Terrain Rammed . | . . . . . . . . . . Walls Destroyed . | . . . . . . . . . . Machines Disabled . | . . . . . . . . . . Actions | -11 -10 -9 -9 -8 -7 -7 -7 -6 -6 --------- Run | Yrd Mat Mat Sto Mat Fac Low Low Fac Was Total 2170 | 111 335 112 482 340 185 427 19 61 98 Wait 16 | . 14 . . . . 2 . . . Move 1887 | 88 288 98 376 290 173 414 19 53 88 Hop . | . . . . . . . . . . Pick Up 47 | 5 9 1 16 12 1 3 . . . Fast Attach 11 | 5 1 . 3 . . . . 2 . Attach 21 | 1 . 1 8 5 3 . . 1 2 Detach 5 | . . . 2 1 . . . 2 . Swap 22 | 3 3 1 6 2 3 2 . 1 1 Drop 18 | . 3 . 6 7 . . . 2 . Fire 140 | 9 17 11 65 23 3 6 . . 6 Melee 3 | . . . . . 2 . . . 1 Ram . | . . . . . . . . . . Kick . | . . . . . . . . . . Crush . | . . . . . . . . . . Escape Stasis . | . . . . . . . . . . Rewire . | . . . . . . . . . . Trap . | . . . . . . . . . . Miscellaneous . | . . . . . . . . . . Route ------- -11/Scrapyard -10/Materials (discovered 2 exits: [*Mat] / [*Min]) -9/Materials (discovered 2 exits: [*Min] / *Sto) -9/Storage -8/Materials -7/Factory -7/Lower Caves -7/Lower Caves -6/Factory -6/Waste (discovered 1 exit: [*Fac]) History --------- Turn | Location | Event 4 | -11/Scrapyard | Discovered new exit (range 16) 120 | -11/Scrapyard | Entered Materials 159 | -10/Materials | Discovered new exit (range 7) 301 | -10/Materials | Build established: Mutant 449 | -10/Materials | Discovered new exit (range 16) 471 | -10/Materials | Entered another Materials area 471 | -9/Materials | Evolved 2 slots: Utility x1, Weapon x1 587 | -9/Materials | Discovered new exit (range 15) 640 | -9/Materials | Discovered new exit (range 5) 647 | -9/Materials | Entered Storage 799 | -9/Storage | Lost 5 parts (1n1u3w) 1197 | -9/Storage | Build established: Tank 1468 | -9/Storage | Discovered new exit (range 12) 1669 | -9/Storage | Learned location of Armory (-4) 1984 | -9/Storage | Entered Materials 1984 | -8/Materials | Evolved 2 slots: Propulsion x2 2570 | -8/Materials | Build established: Scavenger-Bomber 2753 | -8/Materials | Discovered new exit (range 10) 2775 | -8/Materials | Entered Factory 2775 | -7/Factory | Evolved 2 slots: Propulsion x1, Utility x1 3181 | -7/Factory | Discovered new exit (range 14) 3214 | -7/Factory | Entered Lower Caves 3453 | -7/Lower Caves | Build established: Scavenger-Tank 3692 | -7/Lower Caves | Learned location of Extension (-4) 4166 | -7/Lower Caves | Discovered new exit (range 15) 4235 | -7/Lower Caves | Entered another Lower Caves area 4255 | -7/Lower Caves | Discovered new exit (range 12) 4281 | -7/Lower Caves | Entered Factory 4281 | -6/Factory | Evolved 2 slots: Power x1, Utility x1 4414 | -6/Factory | Sucked down chute 4414 | -6/Factory | Entered Waste 4429 | -6/Waste | EMP discharged 4474 | -6/Waste | Spotted C-40 Crusher 4500 | -6/Waste | Spotted C-40 Crusher 4528 | -6/Waste | Spotted C-40 Crusher 4529 | -6/Waste | EMP discharged 4529 | -6/Waste | System corruption reached 10% 4534 | -6/Waste | Crushed by Compactor (1 part destroyed, 1 dropped) 4537 | -6/Waste | Crushed by Compactor (1 part destroyed, 1 dropped) 4539 | -6/Waste | Destroyed C-40 Crusher 4541 | -6/Waste | Crushed by Compactor (1 part destroyed, 2 dropped) 4544 | -6/Waste | Crushed by Compactor (1 part destroyed, 2 dropped) 4547 | -6/Waste | Crushed by Compactor (1 part destroyed, 1 dropped) 4550 | -6/Waste | Crushed by Compactor (1 part destroyed) 4558 | -6/Waste | Spotted C-40 Crusher 4569 | -6/Waste | Discovered new exit (range 16) 4569 | -6/Waste | Spotted C-40 Crusher 4572 | -6/Waste | Self-destructed Last Messages --------------- 04547_ Neutrino Core crushed. 04547_ Com. Matter Pod crushed. 04547_ Imp. Light Armor Plating crushed. 04547_ Axe crushed. 04547_ Hacking Suite crushed. 04550_ Imp. Grenade Launcher crushed. 04553_ H7/TUZD9U0CNWAZM|PL70UD1KL 8RSJ7I0&O